bitfinex-derivatives/quotes_ETHF0:USTF0_20250701
["timestamp","ask_amount","ask_price","bid_price","bid_amount"]
[1751390238211,0.82442,2425.2,2425.1,0.6857]
[1751390239303,3.86832656,2425.2,2425.1,0.6857]
[1751390239508,4.81577301,2425.2,2425.1,0.6857]
[1751390239709,0.82448,2425.1,2425.0,0.82447]
[1751390240014,0.82449,2425.0,2424.9,1.83465]
[1751390240908,0.47730213,2425.0,2424.9,1.83465]
[1751390242619,0.47730213,2425.0,2424.9,0.34495]
[1751390242620,3.52120869,2425.0,2424.9,0.34495]
[1751390243915,0.82459,2424.7,2424.6,0.6712]
[1751390244116,3.86849656,2424.7,2424.6,0.6712]
[1751390244515,3.04390656,2424.7,2424.6,1.49583]
[1751390245413,3.86844656,2424.9,2424.8,0.82456]
[1751390245918,0.82457,2424.8,2424.7,0.82457]
[1751390246419,3.86845656,2424.9,2424.8,0.82456]
[1751390246613,4.81442548,2424.9,2424.8,0.82456]
[1751390247116,3.86845656,2424.9,2424.8,0.82456]
[1751390248020,0.82459,2424.8,2424.7,0.82457]
[1751390249417,3.73620656,2425.1,2424.7,5.10536656]
[1751390249619,3.86838656,2425.1,2425.0,0.82449]
[1751390249818,4.81435795,2425.1,2425.0,0.82449]
[1751390250117,0.6884,2425.4,2424.9,5.10519656]
[1751390250317,1.77036556,2425.3,2425.2,0.82439]
[1751390251119,0.94595556,2425.3,2425.2,0.82439]
[1751390251316,11.704,2425.6,2425.2,0.82439]
[1751390251521,3.86825656,2425.5,2425.4,0.82434]
[1751390251923,0.82437,2425.4,2425.3,0.82436]
[1751390252321,3.86824656,2425.5,2425.4,0.82435]
[1751390253020,3.9900148,2425.5,2425.4,0.82435]
[1751390253326,0.94610824,2425.5,2425.4,0.82435]
[1751390253726,1.77042824,2425.5,2425.4,0.82435]
[1751390254225,4.8143348,2425.5,2425.4,0.82435]
[1751390255130,4.8143548,2425.5,2425.4,0.82435]
[1751390255729,0.82438,2425.4,2425.3,0.82437]
[1751390255928,0.94610824,2425.4,2425.3,0.82437]
[1751390257228,1.77045824,2425.4,2425.3,0.82437]
[1751390257625,0.94610824,2425.4,2425.3,0.82437]
[1751390257829,1.77045824,2425.4,2425.3,2.20807]
[1751390260129,0.94610824,2425.4,2425.3,2.20807]
[1751390261431,0.82424,2425.9,2425.5,2.06081]
[1751390261735,0.94865441,2425.8,2425.7,0.82425]
[1751390261936,0.94865441,2425.8,2425.7,2.82485]
[1751390262135,1.77290441,2425.8,2425.7,2.82485]
[1751390262331,1.77290441,2425.8,2425.7,2.16445]
[1751390262531,1.77290441,2425.8,2425.7,2.82485]
[1751390262930,1.77290441,2425.8,2425.7,1.48465]
[1751390263836,1.77290441,2425.8,2425.7,0.6604]
[1751390264332,0.82425,2425.7,2425.6,0.82426]
[1751390264534,4.81681097,2425.7,2425.6,0.82426]
[1751390264937,3.99256097,2425.7,2425.6,0.82426]
[1751390265132,4.81681097,2425.7,2425.6,0.82426]
[1751390266138,0.82429,2425.6,2425.5,1.4843]
[1751390266341,1.77261228,2425.6,2425.5,0.66]
[1751390266632,3.00907228,2425.6,2425.1,0.82442]
[1751390266838,0.82448,2425.1,2425.0,0.82447]
[1751390267634,0.82448,2425.1,2425.0,0.82449]
[1751390269942,0.82452,2425.0,2424.9,0.8245]
[1751390271038,0.82452,2424.9,2424.8,3.62533]
[1751390271236,0.82452,2424.9,2424.8,2.8008]
[1751390271437,0.82452,2424.9,2424.8,3.62536]
[1751390272844,0.82452,2425.0,2424.9,0.82447]
[1751390273039,0.82452,2425.0,2424.9,2.21147]
[1751390273238,0.82452,2425.0,2424.9,0.82447]
[1751390273635,0.82449,2425.1,2425.0,0.82446]
[1751390275146,0.82449,2425.1,2425.0,2.21586]
[1751390275740,0.82443,2425.3,2425.2,0.82439]
[1751390275940,2.06055,2425.9,2425.2,0.82442]
[1751390276147,0.82431,2425.7,2425.6,0.82425]
[1751390276339,0.94779311,2425.7,2425.6,2.22715]
[1751390276539,0.82425,2425.8,2425.7,0.82422]
[1751390276943,1.7721623,2425.8,2425.7,0.82422]
[1751390278551,0.9479123,2425.8,2425.7,0.82422]
[1751390278751,0.9479123,2425.8,2425.7,3.86812656]
[1751390279951,0.9479123,2425.8,2425.7,8.86812656]
[1751390282354,0.9479123,2425.8,2425.7,3.86812656]
[1751390282559,8.37425205,2426.5,2426.2,0.82405]
[1751390282761,0.82407,2426.3,2426.2,0.82405]
[1751390283263,0.82412,2426.2,2426.1,0.82409]
[1751390284859,0.82415,2426.1,2426.0,0.82413]
[1751390285662,5.10405656,2426.3,2426.1,0.82408]
[1751390285663,0.82411,2426.2,2426.1,0.82408]
[1751390286460,0.82415,2426.0,2425.9,2.18025]
[1751390286655,2.06021,2426.2,2425.7,0.82422]
[1751390286656,0.82424,2425.8,2425.7,0.82422]
[1751390286856,3.04390656,2425.8,2425.7,0.82422]
[1751390287061,3.86812656,2425.8,2425.7,0.82422]
[1751390287358,3.04390656,2425.8,2425.7,0.82422]
[1751390287658,0.82421,2425.9,2425.8,0.82422]
[1751390287958,0.82425,2425.8,2425.7,0.82423]
[1751390288155,0.82425,2425.7,2425.6,1.48957]
[1751390288357,0.82424,2425.8,2425.7,0.82425]
[1751390288657,0.82421,2425.9,2425.8,0.82419]
[1751390289257,0.82421,2425.9,2425.5,4.113]
[1751390289258,0.82425,2425.8,2425.7,0.82422]
[1751390289748,4.44030656,2426.0,2425.7,0.82422]
[1751390289749,0.82417,2426.0,2425.9,0.82418]
[1751390290450,0.82414,2426.1,2426.0,0.82412]
[1751390290653,0.82411,2426.2,2426.1,0.82408]
[1751390291963,0.82408,2426.3,2426.2,0.82404]
[1751390295365,0.82409,2426.3,2426.2,0.82405]
[1751390296568,0.82404,2426.4,2426.3,0.82401]
[1751390296760,1.76529393,2426.4,2426.3,0.82401]
[1751390296960,0.82408,2426.3,2426.2,0.82405]
[1751390297266,0.82408,2426.2,2426.1,0.82409]
[1751390297664,1.51168,2426.2,2426.1,0.82409]
[1751390297864,2.93468,2426.2,2426.1,0.82409]
[1751390299769,0.82414,2426.1,2426.0,0.82412]
[1751390301068,0.82411,2426.2,2426.1,0.82408]
[1751390303158,0.82411,2426.2,2425.9,3.70380656]
[1751390303159,0.93925921,2426.3,2425.9,3.70380656]
[1751390303364,0.82418,2425.9,2425.8,0.8242]
[1751390304169,0.82425,2425.8,2425.7,0.82422]
[1751390304673,4.57796656,2426.0,2425.9,0.82418]
[1751390304865,5.51753683,2426.0,2425.9,0.82418]
[1751390305171,0.82422,2425.9,2425.8,0.82419]
[1751390305469,1.76379027,2425.9,2425.8,0.82419]
[1751390305669,0.93957027,2425.9,2425.8,0.82419]
[1751390305870,0.82416,2426.0,2425.9,0.82418]
[1751390306067,1.7641629,2426.0,2425.9,0.82418]
[1751390306268,0.82416,2426.0,2425.9,0.82418]
[1751390307072,0.82414,2426.1,2426.0,0.8241]
[1751390307271,1.76456718,2426.1,2426.0,0.8241]
[1751390308975,1.76456718,2426.1,2425.8,4.16779]
[1751390308976,0.82418,2426.0,2425.9,0.82416]
[1751390309168,1.76460718,2426.0,2425.9,0.82416]
[1751390316177,1.76460718,2426.0,2425.7,0.7225]
[1751390316385,6.04485374,2425.9,2425.6,0.6776]
[1751390316678,3.86815656,2425.7,2425.6,1.50185]
[1751390317282,3.86815656,2425.7,2425.6,0.82425]
[1751390317480,0.82424,2425.8,2425.7,0.82425]
[1751390317681,1.76575848,2425.8,2425.7,0.82425]
[1751390319077,0.82429,2425.7,2425.5,2.0623]
[1751390319280,0.82435,2425.5,2425.4,0.82433]
[1751390319985,0.82435,2425.5,2425.3,2.21185]
[1751390319986,0.82435,2425.4,2425.3,2.21185]
[1751390320284,0.82446,2425.1,2425.0,0.82446]
[1751390320483,3.04390656,2425.2,2425.0,0.6893]
[1751390320686,0.82446,2425.1,2425.0,1.51376]
[1751390321176,0.82444,2425.2,2425.1,0.82446]
[1751390321882,0.82446,2425.1,2425.0,1.51376]
[1751390322680,0.82445,2425.2,2425.1,0.82443]
[1751390322880,1.76438526,2425.2,2425.1,0.82443]
[1751390324283,0.82445,2425.2,2425.1,0.82443]
[1751390325189,0.82437,2425.4,2425.3,0.82439]
[1751390325388,0.82435,2425.5,2425.4,0.82431]
[1751390325692,0.82429,2425.7,2425.6,0.82425]
[1751390325987,0.82427,2425.8,2425.7,0.82422]
[1751390326784,0.82417,2426.0,2425.9,0.82418]
[1751390326992,4.04225,2426.3,2425.9,3.04390656]
[1751390326993,2.06023,2426.2,2425.9,3.04390656]
[1751390327287,0.82415,2426.0,2425.9,0.82415]
[1751390327686,3.76060656,2426.3,2425.9,0.82415]
[1751390327880,0.82414,2426.1,2426.0,0.82413]
[1751390329185,0.82411,2426.2,2426.1,0.82409]
[1751390329489,0.82406,2426.3,2426.2,0.82405]
[1751390329692,0.8241,2426.2,2426.1,0.82409]
[1751390329892,0.82407,2426.3,2426.2,0.82406]
[1751390330289,0.82408,2426.3,2426.2,0.82407]
[1751390330586,0.82409,2426.2,2426.1,0.82408]
[1751390330789,0.82407,2426.3,2426.2,0.82406]
[1751390332392,0.82408,2426.3,2426.2,0.82407]
[1751390333092,0.82416,2426.1,2426.0,0.82414]
[1751390333589,0.82411,2426.2,2426.1,0.82409]
[1751390333787,0.82411,2426.2,2425.9,2.06046]
[1751390333788,3.04390656,2426.3,2426.2,0.82408]
[1751390334889,0.82412,2426.1,2426.0,2.18594]
[1751390335789,0.82411,2426.2,2426.1,0.82409]
[1751390336185,0.82412,2426.1,2426.0,2.18593]
[1751390336395,0.82412,2426.1,2426.0,2.033]
[1751390336688,0.82412,2426.1,2426.0,0.6712]
[1751390336894,0.82412,2426.1,2426.0,1.49535]
[1751390337094,0.8241,2426.2,2426.1,0.82408]
[1751390337296,0.82408,2426.3,2426.2,0.82406]
[1751390339095,3.04390656,2426.5,2426.1,0.82409]
[1751390339096,0.82411,2426.2,2426.1,0.82409]
[1751390339599,0.82407,2426.3,2426.2,0.82405]
[1751390340397,0.82402,2426.5,2426.4,0.82398]
[1751390340599,0.82402,2426.5,2426.4,3.86788656]
[1751390341104,0.82402,2426.5,2426.4,0.82398]
[1751390341402,0.82397,2426.6,2426.5,0.82393]
[1751390342801,0.82393,2426.7,2426.6,0.82391]
[1751390343007,12.50691,2426.8,2426.7,0.82391]
[1751390343307,0.82391,2426.8,2426.7,0.82391]
[1751390344103,0.82384,2426.9,2426.8,0.82388]
[1751390344502,0.82384,2427.0,2426.9,0.82382]
[1751390344804,0.82386,2426.9,2426.8,0.82384]
[1751390345106,0.82388,2426.8,2426.7,0.82389]
[1751390345307,3.86778656,2426.8,2426.7,0.82389]
[1751390345903,0.82394,2426.7,2426.6,0.82392]
[1751390346205,0.8239,2426.8,2426.7,0.82389]
[1751390347602,0.82387,2426.9,2426.8,0.82385]
[1751390348105,0.82384,2427.0,2426.9,0.82382]
[1751390349007,0.82381,2427.1,2427.0,0.82379]
[1751390350199,0.82384,2427.0,2426.9,0.82382]
[1751390350406,0.82384,2427.0,2426.9,2.27402]
[1751390351509,0.82384,2427.0,2426.9,0.82382]
[1751390353012,0.82384,2427.0,2426.9,2.16792]
[1751390354813,0.82384,2426.9,2426.8,0.6621]
[1751390355013,0.82384,2427.0,2426.8,0.6621]
[1751390355213,0.82384,2427.0,2426.9,0.82382]
[1751390355714,0.82384,2426.9,2426.8,2.89065]
[1751390356111,0.82388,2426.8,2426.7,0.8239]
[1751390356307,0.82395,2426.7,2426.6,0.82392]
[1751390356615,0.8239,2426.8,2426.7,0.82391]
[1751390357915,0.82387,2426.9,2426.8,0.82384]
[1751390360216,0.82391,2426.8,2426.7,0.8239]
[1751390362616,0.82391,2426.8,2426.4,2.05996]
[1751390362617,3.04390656,2426.8,2426.3,6.74709162]
[1751390362816,3.04390656,2426.8,2426.3,5.79151656]
[1751390363018,0.82398,2426.6,2426.5,0.82393]
[1751390363216,0.82401,2426.5,2426.4,0.82398]
[1751390365818,0.82401,2426.5,2426.4,1.48628]
[1751390368423,0.82398,2426.6,2426.5,0.82398]
[1751390369917,0.82398,2426.5,2426.4,2.84449]
[1751390370722,0.82398,2426.5,2426.4,0.6623]
[1751390371022,0.82408,2426.3,2426.2,0.82405]
[1751390372425,0.82408,2426.3,2426.2,1.51355]
[1751390374224,0.82404,2426.4,2426.3,0.82399]
[1751390374428,0.82402,2426.5,2426.4,0.82398]
[1751390374627,0.82397,2426.6,2426.5,0.82392]
[1751390376629,0.82394,2426.7,2426.6,0.82391]
[1751390377224,3.04390656,2427.0,2426.6,0.82391]
[1751390377429,2.05939,2427.2,2426.9,0.8238]
[1751390377632,0.82384,2427.0,2426.9,0.8238]
[1751390379032,0.82378,2427.2,2427.1,0.82376]
[1751390379227,0.82381,2427.0,2426.9,2.18643]
[1751390379527,0.8238,2427.1,2427.0,0.82378]
[1751390381434,0.82384,2427.0,2426.9,0.82382]
[1751390382323,0.82384,2426.9,2426.8,1.51106]
[1751390383434,3.86774656,2426.9,2426.8,0.82388]
[1751390383630,3.86774656,2426.9,2426.7,0.82389]
[1751390383631,0.82391,2426.8,2426.7,0.82389]
[1751390383833,3.86777656,2426.9,2426.8,0.82388]
[1751390385833,3.04390656,2426.9,2426.5,5.73956506]
[1751390386035,0.82392,2426.8,2426.7,0.82388]
[1751390386933,0.82391,2426.7,2426.6,0.82392]
[1751390387436,0.82395,2426.6,2426.5,1.54015]
[1751390388937,0.82394,2426.7,2426.6,0.82391]
[1751390389533,0.8239,2426.8,2426.7,0.82388]
[1751390389833,0.82395,2426.7,2426.6,0.82392]
[1751390392339,0.82387,2427.0,2426.9,0.82381]
[1751390392536,0.82389,2426.9,2426.8,0.82384]
[1751390395739,0.82389,2426.9,2426.8,1.51434]
[1751390396734,0.82389,2426.9,2426.8,0.6905]
[1751390396931,0.82389,2426.9,2426.8,1.51438]
[1751390399340,0.82389,2426.9,2426.8,0.6905]
[1751390399735,0.82389,2426.9,2426.8,1.51438]
[1751390400241,0.82389,2426.9,2426.8,0.6905]
[1751390400541,0.82389,2426.9,2426.8,1.51438]
[1751390400844,0.82389,2426.9,2426.8,0.6905]
[1751390401039,0.82389,2426.9,2426.8,1.51438]
[1751390401935,0.82389,2426.9,2426.8,0.6905]
[1751390402337,0.82389,2426.9,2426.8,1.51438]
[1751390404140,0.41191618,2427.3,2426.8,1.51438]
[1751390404345,0.82378,2427.2,2427.1,0.82375]
[1751390405138,0.82378,2427.2,2427.1,1.53705]
[1751390405535,0.82374,2427.3,2427.2,0.82371]
[1751390407243,0.82374,2427.3,2427.2,3.86761656]
[1751390407445,0.82374,2427.3,2427.2,5.19971656]
[1751390408143,0.82374,2427.2,2427.1,0.7133]
[1751390408539,2.05925,2427.4,2427.0,0.8238]
[1751390408540,0.82378,2427.1,2427.0,0.8238]
[1751390409138,0.82378,2427.1,2427.0,2.1559]
[1751390410549,0.82377,2427.2,2427.1,0.82374]
[1751390410949,0.82377,2427.2,2427.1,2.20134]
[1751390411952,0.82377,2427.2,2427.1,1.3776]
[1751390412450,0.82377,2427.2,2427.1,2.20138]
[1751390412950,0.82381,2427.0,2426.9,0.82381]
[1751390413252,0.82381,2427.0,2426.9,2.90471]
[1751390413653,2.05921,2427.4,2426.9,5.12480656]
[1751390413956,0.82377,2427.2,2427.1,3.86764656]
[1751390415953,0.82377,2427.2,2427.1,4.52724656]
[1751390416454,0.82377,2427.2,2427.1,1.48334]
[1751390416752,0.82377,2427.2,2427.1,2.14708]
[1751390417648,0.82374,2427.2,2427.1,5.19096656]
[1751390417849,0.82374,2427.2,2427.1,2.14706]
[1751390422651,0.82373,2427.3,2427.2,0.82369]
[1751390422951,0.2979,2427.5,2427.4,0.82367]
[1751390423155,0.2979,2427.5,2427.4,3.86757656]
[1751390423753,0.2979,2427.5,2427.4,4.55087656]
[1751390424254,1.12154,2427.5,2427.4,1.50697]
[1751390424654,1.12154,2427.5,2427.4,2.0312]
[1751390425153,0.82374,2427.2,2427.1,2.30677506]
[1751390425358,0.82374,2427.2,2427.1,1.347]
[1751390425756,0.82374,2427.2,2427.1,2.99007506]
[1751390426354,0.82374,2427.2,2427.1,1.347]
[1751390426956,0.82374,2427.2,2427.1,0.6833]
[1751390427157,0.82374,2427.2,2426.9,1.64307506]
[1751390427158,0.82381,2427.0,2426.9,1.64307506]
[1751390427462,0.82384,2426.9,2426.8,1.64307506]
[1751390427657,0.82388,2426.8,2426.7,1.64307506]
[1751390428161,0.82391,2426.7,2426.6,4.01435265]
[1751390428559,0.82391,2426.7,2426.6,3.19510821]
[1751390428758,0.82391,2426.7,2426.6,3.19511321]
[1751390428957,0.82391,2426.7,2426.6,2.37118321]
[1751390429158,3.86781656,2426.7,2426.6,1.64558321]
[1751390429959,0.82395,2426.6,2426.5,1.64558321]
[1751390430165,0.82398,2426.5,2426.4,1.64558321]
[1751390430360,0.82401,2426.4,2426.3,2.37288321]
[1751390430662,0.82401,2426.4,2426.3,0.7273]
[1751390431069,0.82401,2426.4,2426.3,4.01618265]
[1751390431263,0.82398,2426.6,2426.3,5.13890656]
[1751390431567,0.82398,2426.6,2426.5,3.04390656]
[1751390431767,2.05973,2426.8,2426.4,2.46929989]
[1751390431768,0.82398,2426.5,2426.4,2.46929989]
[1751390431966,0.82398,2426.5,2426.4,3.82069989]
[1751390433171,0.82398,2426.5,2426.4,2.99670989]
[1751390433463,0.82398,2426.5,2426.4,3.82071989]
[1751390433659,0.7033,2426.8,2426.4,2.17541]
[1751390433860,2.05946,2427.1,2426.7,3.04390656]
[1751390434070,0.82391,2426.8,2426.7,3.86778656]
[1751390435169,0.82386,2426.9,2426.8,0.82385]
[1751390435871,0.82383,2427.0,2426.9,0.8238]
[1751390436274,0.82381,2427.1,2427.0,0.82378]
[1751390436471,0.82381,2427.1,2427.0,0.82377]
[1751390436472,0.8238,2427.1,2427.0,0.82377]
[1751390437369,0.82381,2427.0,2426.9,3.86773656]
[1751390437770,0.82381,2427.0,2426.9,0.82383]
[1751390438672,0.82388,2426.9,2426.8,0.82385]
[1751390439664,0.82383,2427.0,2426.9,0.82379]
[1751390441569,0.82384,2426.9,2426.8,2.46915989]
[1751390441874,0.82388,2426.8,2426.7,0.82387]
[1751390442972,0.82391,2426.7,2426.6,2.46922989]
[1751390443270,2.05967,2426.9,2426.5,2.46926989]
[1751390443271,0.82395,2426.6,2426.5,2.46926989]
[1751390443477,0.82395,2426.6,2426.4,1.64530989]
[1751390443478,3.86785656,2426.6,2426.4,1.64530989]
[1751390443671,0.7257,2426.7,2426.6,0.82395]
[1751390443977,0.82391,2426.8,2426.7,0.82388]
[1751390444175,2.78517,2427.1,2426.6,1.64530989]
[1751390444371,0.82389,2426.9,2426.8,0.82385]
[1751390444671,0.82383,2427.0,2426.9,0.82379]
[1751390445078,0.82383,2427.0,2426.9,3.86769656]
[1751390445273,0.82378,2427.2,2427.1,0.82375]
[1751390445575,0.82378,2427.2,2427.1,3.86765656]
[1751390446171,0.82373,2427.3,2427.2,0.8237]
[1751390446981,0.82378,2427.1,2427.0,1.51339]
[1751390449074,0.7236,2427.3,2427.0,0.6896]
[1751390449273,1.54734,2427.3,2427.2,0.82374]
[1751390449578,0.82377,2427.2,2427.1,0.82375]
[1751390450579,0.82378,2427.1,2427.0,1.51338]
[1751390451578,0.82377,2427.2,2427.1,0.82374]
[1751390452378,0.82374,2427.3,2427.2,0.82371]
[1751390453479,0.82378,2427.2,2427.1,0.82376]
[1751390454074,0.82378,2427.1,2427.0,1.51338]
[1751390454778,0.82376,2427.2,2427.1,0.82375]
[1751390455080,0.82376,2427.2,2427.0,0.6896]
[1751390455081,0.82381,2427.0,2426.9,1.64530989]
[1751390455269,5.10346656,2427.0,2426.7,1.64530989]
[1751390455470,3.86778656,2426.8,2426.7,2.46921989]
[1751390455672,3.86778656,2426.8,2426.6,1.3879]
[1751390455872,0.82391,2426.7,2426.6,1.3879]
[1751390456376,0.82391,2426.7,2426.6,2.21181]
[1751390458282,0.82391,2426.7,2426.6,1.3879]
[1751390458482,5.10365656,2426.8,2426.5,0.82396]
[1751390458689,0.82398,2426.6,2426.5,0.82396]
[1751390459081,0.82395,2426.6,2426.5,0.82396]
[1751390459287,0.82393,2426.7,2426.6,0.82395]
[1751390460194,0.82398,2426.6,2426.5,0.82396]
[1751390461699,0.82393,2426.7,2426.6,0.82392]
[1751390461887,0.82393,2426.7,2426.4,4.11383]
[1751390461888,0.82391,2426.8,2426.7,0.82388]
[1751390462091,0.82392,2426.8,2426.7,0.82389]
[1751390462493,0.82392,2426.8,2426.7,1.48069]
[1751390463187,0.82392,2426.8,2426.7,0.6568]
[1751390463392,0.82391,2426.7,2426.6,0.82392]
[1751390465198,6.55733656,2427.0,2426.4,7.47522645]
[1751390465199,0.8239,2426.8,2426.7,0.8239]
[1751390465401,0.82395,2426.7,2426.6,0.82392]
[1751390466602,0.82395,2426.6,2426.5,2.90265]
[1751390466899,0.82395,2426.6,2426.5,0.6776]
[1751390467098,3.04390656,2426.6,2426.2,2.46934989]
[1751390467399,3.04390656,2426.6,2426.2,2.33150989]
[1751390467400,0.82405,2426.3,2426.2,2.33150989]
[1751390467599,0.82405,2426.3,2426.2,0.6862]
[1751390468900,0.82405,2426.3,2426.2,1.51028]
[1751390469402,0.82405,2426.3,2426.2,0.6862]
[1751390469900,0.82405,2426.3,2426.2,1.51028]
[1751390470696,0.82405,2426.3,2426.2,0.6862]
[1751390471495,2.06017,2426.3,2425.9,2.31990989]
[1751390471700,0.82425,2425.7,2425.6,3.90387989]
[1751390471999,0.82429,2425.6,2425.5,3.01000989]
[1751390472199,3.86819656,2425.6,2425.5,0.6901]
[1751390472504,0.82428,2425.7,2425.6,0.82427]
[1751390472804,0.82424,2425.8,2425.7,0.82425]
[1751390473198,18.17677656,2426.1,2425.8,0.8242]
[1751390473199,0.82421,2425.9,2425.8,0.8242]
[1751390473396,3.37678,2426.3,2425.5,7.22910656]
[1751390473397,3.37678,2426.3,2425.7,5.10453656]
[1751390473600,0.82415,2426.1,2426.0,0.82414]
[1751390473802,0.8241,2426.2,2426.1,0.82409]
[1751390474102,0.82412,2426.1,2426.0,1.51483]
[1751390474698,0.82411,2426.2,2426.1,0.8241]
[1751390476002,0.82408,2426.2,2426.1,0.8241]
[1751390476302,0.82408,2426.3,2426.0,6.53595636]
[1751390476508,0.82408,2426.3,2426.2,0.82407]
[1751390477294,2.05997,2426.5,2426.0,0.6907]
[1751390477295,2.06008,2426.4,2426.0,0.6907]
[1751390477495,0.82412,2426.2,2426.1,0.8241]
[1751390478406,3.42928,2426.5,2426.2,0.82407]
[1751390478601,0.82408,2426.3,2426.2,0.82407]
[1751390479706,0.82411,2426.2,2426.1,0.82409]
[1751390480707,1.3693,2426.5,2426.0,4.19746]
[1751390480907,0.82407,2426.3,2426.2,0.82404]
[1751390484409,0.7091,2426.6,2426.0,2.1371]
[1751390484709,72.3907,2426.7,2426.4,0.82398]
[1751390484710,0.82401,2426.5,2426.4,0.82398]
[1751390485304,0.82401,2426.5,2426.4,1.52798]
[1751390486610,0.82401,2426.5,2426.4,1.52801]
[1751390487507,0.82397,2426.6,2426.5,0.82395]
[1751390487812,0.82395,2426.7,2426.6,0.82392]
[1751390488011,0.82398,2426.6,2426.5,0.82396]
[1751390489008,0.82393,2426.7,2426.6,0.82391]
[1751390489205,0.6638,2427.0,2426.5,2.05994]
[1751390489410,0.82387,2426.9,2426.8,0.82385]
[1751390491308,0.82391,2426.8,2426.7,0.82389]
[1751390491707,0.82386,2426.9,2426.8,0.82385]
[1751390492611,0.8239,2426.8,2426.7,0.82389]
[1751390493212,27.14445,2427.1,2426.8,0.82384]
[1751390493213,0.82386,2426.9,2426.8,0.82384]
[1751390493713,0.82381,2427.1,2427.0,0.82379]
[1751390494609,0.82378,2427.2,2427.1,0.82378]
[1751390495513,0.82373,2427.3,2427.2,0.82371]
[1751390496309,15.34772,2427.5,2427.4,0.82367]
[1751390496310,0.2979,2427.5,2427.4,0.82367]
[1751390497316,0.2979,2427.5,2427.4,2.14547]
[1751390498914,0.82351,2428.0,2427.6,2.05902]
[1751390499107,0.82346,2428.1,2428.0,0.82344]
[1751390499709,0.82343,2428.2,2428.1,0.82341]
[1751390500008,2.05836,2428.4,2428.0,0.82344]
[1751390500009,0.82346,2428.1,2428.0,0.82344]
[1751390501311,0.82346,2428.1,2427.9,2.061]
[1751390501312,0.82342,2428.2,2428.1,0.82342]
[1751390501718,0.82346,2428.1,2428.0,0.82346]
[1751390502108,5.84525636,2428.2,2427.8,0.7188]
[1751390502314,0.8235,2428.0,2427.9,0.82349]
[1751390503422,0.8235,2427.9,2427.8,1.54232]
[1751390504123,0.8235,2427.9,2427.8,0.7188]
[1751390504310,0.82357,2427.7,2427.6,1.53259]
[1751390504616,0.82357,2427.7,2427.6,0.709]
[1751390504821,0.82361,2427.6,2427.5,1.49154]
[1751390507421,0.82361,2427.6,2427.5,0.6679]
[1751390507721,0.82361,2427.6,2427.5,1.49154]
[1751390508026,0.82359,2427.7,2427.6,0.82357]
[1751390508616,0.82361,2427.6,2427.5,1.49151]
[1751390509222,0.82359,2427.7,2427.6,0.82358]
[1751390509912,0.82354,2427.9,2427.8,0.82353]
[1751390511918,0.82361,2427.6,2427.5,0.6679]
[1751390512127,0.82361,2427.6,2427.5,1.49151]
[1751390514726,0.8236,2427.7,2427.6,0.82359]
[1751390516526,0.82361,2427.6,2427.5,1.49151]
[1751390517229,0.82364,2427.5,2427.4,0.82366]
[1751390518422,0.82364,2427.6,2427.5,0.82362]
[1751390521722,2.75197,2427.8,2427.4,1.3686]
[1751390521917,0.82367,2427.4,2427.3,2.19558]
[1751390525129,0.82367,2427.4,2427.3,1.50868]
[1751390525429,0.82365,2427.6,2427.5,0.82362]
[1751390525730,0.82365,2427.6,2427.3,2.74428]
[1751390525731,0.8236,2427.7,2427.6,0.82357]
[1751390526828,0.82361,2427.6,2427.5,0.82361]
[1751390527422,0.82361,2427.6,2427.5,0.82364]
[1751390527630,0.82364,2427.5,2427.4,2.4624894]
[1751390527829,0.82364,2427.5,2427.4,0.82365]
[1751390529530,3.04071211,2427.6,2427.3,2.3504394]
[1751390529833,0.82373,2427.3,2427.2,0.82371]
[1751390530131,0.82369,2427.4,2427.3,0.82371]
[1751390530540,0.82363,2427.6,2427.5,0.82361]
[1751390530731,15.35041211,2428.0,2427.5,2.05908]
[1751390530934,0.82352,2427.9,2427.8,0.8235]
[1751390532832,3.04071211,2428.2,2427.7,2.05894]
[1751390533133,0.82347,2428.1,2428.0,0.82344]
[1751390533636,17.40975211,2428.4,2427.9,0.82348]
[1751390533637,0.8235,2428.0,2427.9,0.82348]
[1751390534534,3.04071211,2428.0,2427.7,2.4623894]
[1751390534835,0.82353,2427.9,2427.8,0.82352]
[1751390535724,0.82353,2427.9,2427.6,0.6588]
[1751390535725,0.82356,2427.8,2427.7,0.82355]
[1751390535929,0.82357,2427.7,2427.6,1.48238]
[1751390536328,0.82356,2427.8,2427.7,0.82355]
[1751390537433,0.82357,2427.7,2427.6,2.93567]
[1751390537637,0.82367,2427.5,2427.4,0.82365]
[1751390538531,0.82363,2427.6,2427.5,0.82362]
[1751390539330,2.05893,2427.8,2427.4,0.82365]
[1751390539331,0.82366,2427.5,2427.4,0.82365]
[1751390540034,0.82363,2427.6,2427.5,0.82362]
[1751390541035,0.82363,2427.6,2427.5,0.82361]
[1751390542238,0.82367,2427.5,2427.4,0.82365]
[1751390543338,2.05885,2427.8,2427.4,0.82365]
[1751390543339,0.82357,2427.8,2427.7,0.82354]
[1751390543545,1.4179,2427.9,2427.6,0.82358]
[1751390543546,0.82361,2427.7,2427.6,0.82358]
[1751390544536,2.05879,2427.9,2427.5,2.24272]
[1751390544537,0.82361,2427.6,2427.5,2.24272]
[1751390544737,0.82359,2427.7,2427.6,0.82357]
[1751390545132,0.82356,2427.8,2427.7,0.82352]
[1751390545941,0.82353,2427.9,2427.8,0.82351]
[1751390546433,4.78587,2428.1,2427.9,0.82348]
[1751390546434,0.82351,2428.0,2427.9,0.82348]
[1751390548444,0.6824,2428.3,2428.0,0.82344]
[1751390548445,0.82346,2428.1,2428.0,0.82344]
[1751390549143,0.8235,2428.0,2427.9,0.82348]